fUSD/lending_fUSD_20240815
["ID","MTS","AMOUNT","RATE_DAILY","PERIOD"]
[335016868,1723741930384,-500.0,0.00023835,7]
[335016869,1723741930394,-655.27,0.00023835,7]
[335016870,1723741930403,-674.14,0.00023835,7]
[335016871,1723741930413,-500.0,0.00023835,7]
[335016872,1723741930422,-500.0,0.00023835,7]
[335016873,1723741930432,-500.0,0.00023835,7]
[335016874,1723741930442,-500.0,0.00023835,7]
[335016875,1723741930452,-615.02840954,0.00023835,7]
[335016876,1723741930462,-655.27,0.00023835,7]
[335016877,1723741930472,-500.0,0.00023835,7]
[335016878,1723741930481,-500.0,0.00023835,7]
[335016879,1723741930491,-500.0,0.00023835,7]
[335016880,1723741930500,-500.0,0.00023835,7]
[335016881,1723741930510,-655.27,0.00023835,7]
[335016882,1723741930519,-459.18033538,0.00023835,7]
[335016883,1723741930528,-937.4,0.00023835,7]
[335016884,1723741930537,-452.3,0.00023835,7]
[335016885,1723741930547,-500.0,0.00023835,7]
[335016886,1723741930556,-655.27,0.00023835,7]
[335016887,1723741930565,-500.0,0.00023835,7]
[335016888,1723741930575,-937.4,0.00023835,7]
[335016889,1723741930586,-5133.04,0.00023835,7]
[335016890,1723741930595,-500.0,0.00023835,7]
[335016891,1723741930604,-655.27,0.00023835,7]
[335016892,1723741930613,-500.0,0.00023835,7]
[335016893,1723741930622,-937.4,0.00023835,7]
[335016894,1723741930632,-500.0,0.00023835,7]
[335016895,1723741930641,-5133.04,0.00023835,7]
[335016896,1723741930650,-655.27,0.00023835,7]
[335016897,1723741930660,-937.4,0.00023835,7]
[335016898,1723741930669,-500.0,0.00023835,7]
[335016899,1723741930678,-5133.04,0.00023835,7]
[335016900,1723741930688,-21014.66,0.00023835,7]
[335016901,1723741930697,-655.27,0.00023835,7]
[335016902,1723741930707,-500.0,0.00023835,7]
[335016903,1723741930716,-937.4,0.00023835,7]
[335016904,1723741930725,-21014.66,0.00023835,7]
[335016905,1723741930734,-5133.04,0.00023835,7]
[335016906,1723741930744,-500.0,0.00023835,7]
[335016907,1723741930753,-937.4,0.00023835,7]
[335016908,1723741930763,-21014.66,0.00023835,7]
[335016909,1723741930772,-655.27,0.00023835,7]
[335016910,1723741930781,-5133.04,0.00023835,7]
[335016911,1723741930790,-937.4,0.00023835,7]
[335016912,1723741930799,-21014.66,0.00023835,7]
[335016913,1723741930812,-655.27,0.00023835,7]
[335016914,1723741930821,-5133.04,0.00023835,7]
[335016915,1723741930834,-500.0,0.00023835,7]
[335016916,1723741930844,-937.4,0.00023835,7]
[335016917,1723741930854,-21014.66,0.00023835,7]
[335016918,1723741930864,-500.0,0.00023835,7]
[335016919,1723741930874,-500.0,0.00023835,7]
[335016920,1723741931151,-500.0,0.00023835,7]
[335016921,1723741931162,-500.0,0.00023835,7]
[335016922,1723741931172,-937.4,0.00023835,7]
[335016923,1723741931182,-21014.66,0.00023835,7]
[335016924,1723741931191,-500.0,0.00023835,7]
[335016925,1723741931202,-500.0,0.00023835,7]
[335016926,1723741931212,-21014.66,0.00023835,7]
[335016927,1723741931222,-937.4,0.00023835,7]
[335016928,1723741931232,-500.0,0.00023835,7]
[335016929,1723741931242,-500.0,0.00023835,7]
[335016930,1723741931251,-500.0,0.00023835,7]
[335016931,1723741931260,-21014.66,0.00023835,7]
[335016932,1723741931269,-500.0,0.00023835,7]
[335016933,1723741931278,-937.4,0.00023835,7]
[335016934,1723741931288,-500.0,0.00023835,7]
[335016935,1723741931298,-500.0,0.00023835,7]
[335016936,1723741931307,-937.4,0.00023835,7]
[335016937,1723741931316,-500.0,0.00023835,7]
[335016938,1723741931327,-500.0,0.00023835,7]
[335016939,1723741931340,-21014.66,0.00023835,7]
[335016940,1723741931349,-500.0,0.00023835,7]
[335016941,1723741931359,-655.27,0.00023835,7]
[335016942,1723741931368,-500.0,0.00023835,7]
[335016943,1723741931377,-500.0,0.00023835,7]
[335016944,1723741931386,-21014.66,0.00023835,7]
[335016945,1723741931396,-500.0,0.00023835,7]
[335016946,1723741931406,-500.0,0.00023835,7]
[335016947,1723741931415,-674.14,0.00023835,7]
[335016948,1723741931425,-655.27,0.00023835,7]
[335016949,1723741931435,-500.0,0.00023835,7]
[335016950,1723741931445,-500.0,0.00023835,7]
[335016951,1723741931454,-500.0,0.00023835,7]
[335016952,1723741931464,-500.0,0.00023835,7]
[335016953,1723741931473,-655.27,0.00023835,7]
[335016954,1723741931483,-299.70449065,0.00023835,7]
[335016955,1723741931492,-655.27,0.00023835,7]
[335016956,1723741931502,-500.0,0.00023835,7]
[335016957,1723741931512,-655.27,0.00023835,7]
[335016958,1723741931522,-5133.04,0.00023835,7]
[335016959,1723741931532,-500.0,0.00023835,7]
[335016960,1723741931543,-500.0,0.00023835,7]
[335016961,1723741931554,-655.27,0.00023835,7]
[335016962,1723741931565,-5133.04,0.00023835,7]
[335016963,1723741931576,-937.43,0.00023835,7]
[335016964,1723741931589,-21014.66,0.00023835,7]
[335016965,1723741931599,-500.0,0.00023835,7]
[335016966,1723741931609,-500.0,0.00023835,7]
[335016967,1723741931619,-500.0,0.00023835,7]
[335016968,1723741931628,-5133.04,0.00023835,7]
[335016969,1723741931638,-655.27,0.00023835,7]
[335016970,1723741931648,-500.0,0.00023835,7]
[335016971,1723741931659,-15643.27484014,0.00023835,7]
[335016972,1723741931726,-5371.38515986,0.00023835,7]
[335016973,1723741931736,-254.39524348,0.00023835,7]
[335016974,1723741931748,-245.60475652,0.00023835,7]
[335016975,1723741931758,-500.0,0.00023835,7]
[335016976,1723741931768,-353.89637956,0.00023835,7]
[335016977,1723741931780,-4779.14362044,0.00023835,7]
[335016978,1723741931790,-126.85367545,0.00023835,7]
[335016982,1723742927536,1008.19407169,0.00015,120]
[335016989,1723742976299,-3574.28495,0.00010645,2]
[335016995,1723743032248,-170.54579841,0.00010645,2]
[335016996,1723743032258,-291.65836493,0.00010645,2]
[335016997,1723743032267,-243.90615099,0.00010645,2]
[335017001,1723743032353,-277.9595,0.00010645,2]
[335017002,1723743032379,-282.53098383,0.00010645,2]
[335017003,1723743032389,-345.32200213,0.00010699,2]
[335017004,1723743032409,-358.02809787,0.00010699,2]
[335017005,1723743032419,-4968.6081285,0.000107,2]
[335017006,1723743032428,-300.0,0.00010799,2]
[335017007,1723743032438,-4547.65039022,0.000108,2]
[335017008,1723743032449,-1149.92816832,0.000108,2]
[335017009,1723743032459,-213.3833,0.000108,2]
[335017010,1723743032468,-77.12738631,0.000109,2]
[335017011,1723743032480,-422.87261369,0.000109,2]
[335017012,1723743032490,-522.33218353,0.000109,2]
[335017017,1723743038389,-193.98112342,0.00010645,2]
[335017019,1723743038399,-114.39437157,0.00010645,2]
[335017021,1723743038485,-1788.39037466,0.00010645,2]
[335017022,1723743038497,-5533.35431226,0.00010645,2]
[335017023,1723743038508,-264.24,0.00010645,2]
[335017024,1723743038735,-11879.395,0.00010645,2]
[335017025,1723743038746,-819.89665738,0.00010645,2]
[335017026,1723743038756,-477.66781647,0.000109,2]
[335017027,1723743038765,-2680.2536,0.000109,2]
[335017028,1723743038774,-9873.689897,0.000109,2]
[335017030,1723743038786,-1757.41072631,0.000109,2]
[335017032,1723743038797,-9326.64249005,0.000109,2]
[335017033,1723743038808,-1051.74850456,0.000109,2]
[335017047,1723743040320,-162.76853278,0.00010645,2]
[335017049,1723743040330,-149.23646622,0.000109,2]
[335017050,1723743040423,-77841.27191586,0.000109,2]
[335017051,1723743040433,-10286.01030686,0.000109,2]
[335017052,1723743040550,-1370.6067523,0.000109,2]
[335017053,1723743040560,-1324.892,0.000109,2]
[335017054,1723743040570,-1049.99887276,0.000109,2]
[335017055,1723743040579,-534.50786604,0.000109,2]
[335017056,1723743040589,-23900.0,0.00010929,2]
[335017057,1723743040598,-11656.61705912,0.00010967,2]
[335017058,1723743040608,-197.69822997,0.00010997,2]
[335017059,1723743040618,-8176.04654029,0.00010999,2]
[335017060,1723743040627,-500.0,0.00010999,2]
[335017061,1723743040637,-334.6657597,0.00010999,2]
[335017062,1723743040646,-233858.88263517,0.00011,2]
[335017063,1723743040655,-2685519.66628379,0.00011,2]
[335017064,1723743040679,-503.12523444,0.00011,2]
[335017065,1723743040690,-530.765,0.00011,2]
[335017087,1723743041633,-5690.0574,0.00011,2]
[335017097,1723743044331,-3292.21027619,0.00011,2]
[335017098,1723743044342,-1329.54172578,0.00011,2]
[335017099,1723743044354,-4491.72001492,0.00011,2]
[335017100,1723743044368,-64318.5989896,0.00011,2]
[335017101,1723743044379,-612.5168473,0.00011,2]
[335017102,1723743044389,-120304.73191444,0.00011,2]
[335017103,1723743044401,-562.04738784,0.00011,2]
[335017104,1723743044414,-1965.31083327,0.00011,2]
[335017105,1723743044453,-1232.8790104,0.00011,2]
[335017106,1723743044466,-285.075,0.00011,2]
[335017107,1723743044477,-6191.60214686,0.00011,2]
[335017120,1723743046423,-213.77284399,0.00010645,2]
[335017121,1723743046434,-409.98940992,0.00010645,2]
[335017122,1723743046444,-281.0,0.00010999,2]
[335017123,1723743046455,-1182.31774609,0.00011,2]
[335017124,1723743046467,-1303.17693193,0.00011,2]
[335017125,1723743046479,-500.0,0.00011,2]
[335017126,1723743046491,-11879.57544,0.00011,2]
[335017127,1723743046505,-500.2625573,0.00011,2]
[335017128,1723743046516,-1434.79165165,0.00011,2]
[335017129,1723743046528,-1741.15000004,0.00011,2]
[335017130,1723743046554,-1688.41816682,0.00011,2]
[335017131,1723743046566,-3568.87239826,0.00011,2]
[335017132,1723743046578,-2924.57046392,0.00011,2]
[335017133,1723743046590,-612.475,0.00011,2]
[335017134,1723743046602,-522.88362862,0.00011,2]
[335017135,1723743046623,-24571.09859518,0.00011,2]
[335017136,1723743046739,-6362.28804746,0.00011,2]
[335017137,1723743046751,-745.70286184,0.00011,2]
[335017138,1723743046763,-1866.90529739,0.00011,2]
[335017139,1723743046775,-295.21458624,0.00011,2]
[335017140,1723743046788,-266.39857557,0.00011,2]
[335017141,1723743046804,-818.55008395,0.00011,2]
[335017292,1723743316223,566.32,8.879e-05,2]
[335017293,1723743349376,693.33525753,8.879e-05,2]
[335017294,1723743355932,3071.43156646,8.879e-05,2]
[335017295,1723743358875,2512.25350072,8.879e-05,2]
[335017296,1723743518822,3156.65967529,8.879e-05,2]
[335017297,1723743518844,10000.0,8.879e-05,2]
[335017298,1723743518865,7243.01104058,8.879e-05,2]
[335017299,1723743608836,2756.98895942,8.879e-05,2]
[335017300,1723743608857,10000.0,8.879e-05,2]
[335017301,1723743608879,7628.66548577,8.879e-05,2]
[335017302,1723743677873,400.0,9.777e-05,2]
[335017303,1723743698630,250.0,9.92e-05,2]
[335017304,1723743790552,538.0,8.219e-05,2]
[335017305,1723743805315,291.65836493,9.92e-05,2]
[335017306,1723743811398,693.33525753,9.92e-05,2]
[335017307,1723743813883,198.34089177,9.92e-05,2]
[335017308,1723743813905,213.66763425,9.92e-05,2]
[335017309,1723743818053,6210.04493217,9.92e-05,2]
[335017310,1723743829862,1269.15931583,9.92e-05,2]
[335017311,1723743834970,2307.12811775,9.92e-05,2]
[335017312,1723743834991,764.30344871,9.92e-05,2]
[335017313,1723743836756,201.07507453,9.92e-05,2]
[335017315,1723743918218,9034.62147676,9.92e-05,2]
[335017316,1723743918242,992.09074744,9.92e-05,2]
[335017317,1723743918862,9007.90925256,9.92e-05,2]
[335017318,1723743918885,10000.0,9.92e-05,2]
[335017319,1723743918906,1391.76146331,9.92e-05,2]
[335017320,1723743929611,214.71937121,9.92e-05,2]
[335017321,1723743962683,172.16081334,5e-05,2]
[335017322,1723743973662,4114.94622753,9.982e-05,2]
[335017323,1723743974765,1000.0,9.791e-05,2]
[335017324,1723744015388,693.33525753,9.791e-05,2]
[335017325,1723744018151,2413.07686708,9.92e-05,2]
[335017326,1723744018173,10000.0,9.92e-05,2]
[335017327,1723744018192,3826.12652352,9.92e-05,2]
[335017328,1723744021907,150.0,9.888e-05,2]
[335017329,1723744021965,3071.43156646,9.791e-05,2]
[335017330,1723744023372,2952.44191002,9.791e-05,2]
[335017331,1723744023392,10000.0,9.791e-05,2]
[335017332,1723744023415,1168.39165775,9.791e-05,2]
[335017333,1723744097462,411.60120989,9.791e-05,2]
[335017334,1723744112336,4285.64,9.797e-05,2]
[335017335,1723744112604,159.09255227,9.791e-05,2]
[335017336,1723744113557,427.19,9.797e-05,2]
[335017337,1723744119075,12824.2471649,9.791e-05,2]
[335017338,1723744124649,15334.3324,9.885e-05,2]
[335017339,1723744125290,200.0,9.766e-05,2]
[335017340,1723744125410,693.33525753,9.791e-05,2]
[335017341,1723744162090,526.89163581,9.943e-05,2]
[335017342,1723744162835,462.398877,9.934e-05,2]
[335017343,1723744164941,250.0,9.794e-05,2]
[335017345,1723744167277,-229.51,9.985e-05,2]
[335017346,1723744167310,-170.6544037,9.987e-05,2]
[335017347,1723744205982,1252.74082596,9.934e-05,2]
[335017348,1723744220894,1269.15931583,9.934e-05,2]
[335017355,1723744231387,-85.3455963,9.987e-05,2]
[335017357,1723744231398,-550.0,0.0001,2]
[335017359,1723744231408,-153.33333334,0.0001,2]
[335017360,1723744231418,-262.0,0.00010008,2]
[335017363,1723744231429,-150.0,0.00010047,2]
[335017364,1723744231438,-26357.96381042,0.00010047,2]
[335017365,1723744231449,-12853.4313506,0.00010047,2]
[335017366,1723744231458,-23900.0,0.00010048,2]
[335017367,1723744231467,-150.0,0.00010082,2]
[335017368,1723744231477,-194.46,0.00010091,2]
[335017369,1723744231486,-499.99,0.00010091,2]
[335017370,1723744231495,-1424.35,0.00010091,2]
[335017371,1723744231504,-2386.8149171,0.00010097,2]
[335017372,1723744231513,-1331.86,0.00010377,2]
[335017373,1723744231523,-538.0,0.0001048,2]
[335017374,1723744231532,-1302.71,0.00010614,2]
[335017375,1723744231542,-7238.2415,0.00010699,2]
[335017376,1723744231555,-760.3907085,0.00010713,2]
[335017377,1723744231565,-1018.22681122,0.0001078,2]
[335017378,1723744231574,-1213.17081058,0.0001078,2]
[335017379,1723744231583,-3781.4284,0.00010797,2]
[335017380,1723744231594,-1528.5043,0.00010797,2]
[335017381,1723744231603,-1111.124,0.00010797,2]
[335017382,1723744231613,-6715.6828,0.000108,2]
[335017383,1723744231622,-72616.2813,0.00010897,2]
[335017384,1723744231634,-15123.38627341,0.00010899,2]
[335017385,1723744231644,-15123.38627339,0.00010899,2]
[335017386,1723744231655,-15123.38627339,0.00010899,2]
[335017387,1723744231665,-15123.38627339,0.00010899,2]
[335017388,1723744231674,-15123.38627339,0.00010899,2]
[335017389,1723744231683,-15123.38627339,0.00010899,2]
[335017390,1723744231692,-15123.38627339,0.00010899,2]
[335017391,1723744231702,-15123.38627339,0.00010899,2]
[335017392,1723744231711,-15123.38627339,0.00010899,2]
[335017393,1723744231721,-155.0,0.00010899,2]
[335017394,1723744231732,-155.0,0.00010899,2]
[335017395,1723744231742,-2000.0,0.000109,2]
[335017396,1723744231752,-4911.02330251,0.000109,2]
[335017397,1723744231763,-1121.25510711,0.000109,2]
[335017398,1723744231779,-1094.38454075,0.000109,2]
[335017399,1723744231791,-667.36237526,0.000109,2]
[335017400,1723744231902,-418.90217464,0.000109,2]
[335017401,1723744231914,-7000.17256487,0.000109,2]
[335017402,1723744231925,-20022.55935371,0.000109,2]
[335017403,1723744231949,-341.42630098,0.000109,2]
[335017404,1723744231961,-633.33,0.000109,2]
[335017405,1723744231971,-508.47198714,0.000109,2]
[335017406,1723744231982,-1323.01385731,0.000109,2]
[335017407,1723744231994,-650.14882909,0.000109,2]
[335017408,1723744235932,153.33333333,9.904e-05,2]
[335017410,1723744237743,-1698.02186945,0.000109,2]
[335017411,1723744237878,-475.14527595,0.000109,2]
[335017412,1723744237890,-279.36,0.000109,2]
[335017413,1723744237902,-1364.83123837,0.000109,2]
[335017414,1723744237913,-1565.64,0.000109,2]
[335017415,1723744237925,-52984.79532286,0.000109,2]
[335017416,1723744237934,-1000.0,0.000109,2]
[335017417,1723744237944,-168.91896574,0.000109,2]
[335017418,1723744237954,-15123.38627339,0.000109,2]
[335017419,1723744237964,-805.65955879,0.000109,2]
[335017420,1723744237973,-805.65955873,0.000109,2]
[335017421,1723744237982,-805.65955873,0.000109,2]
[335017422,1723744237992,-805.65955873,0.000109,2]
[335017423,1723744238002,-805.65955873,0.000109,2]
[335017424,1723744238012,-805.65955873,0.000109,2]
[335017425,1723744238021,-805.65955873,0.000109,2]
[335017426,1723744238031,-805.65955873,0.000109,2]
[335017427,1723744238040,-189.55387216,0.000109,2]
[335017428,1723744238049,-150.0,0.00010959,2]
[335017429,1723744238059,-2000.0,0.00010959,2]
[335017430,1723744238069,-250.0,0.00010959,2]
[335017431,1723744238079,-1500.0,0.00010959,2]
[335017432,1723744238089,-200.0,0.00010973,2]
[335017433,1723744238098,-309.38389104,0.00010979,2]
[335017434,1723744238108,-309.38389104,0.00010979,2]
[335017435,1723744238117,-55792.77294141,0.00010997,2]
[335017436,1723744238127,-400.0,0.00011,2]
[335017437,1723744238137,-70086.66742476,0.00011,2]
[335017438,1723744238163,-544.37084928,0.00011,2]
[335017439,1723744238176,-1504.2,0.00011,2]
[335017440,1723744238187,-12927.10381758,0.00011,2]
[335017441,1723744238204,-18071.41722401,0.00011,2]
[335017443,1723744239512,-3440.49796905,0.00011,2]
[335017444,1723744239524,-2481.97911351,0.00011,2]
[335017445,1723744239535,-9044.16638089,0.00011,2]
[335017446,1723744239546,-2837.74696614,0.00011,2]
[335017447,1723744239560,-14000.0,0.00011,2]
[335017448,1723744239571,-338.0226125,0.00011,2]
[335017449,1723744239582,-1259.94906217,0.00011,2]
[335017450,1723744239593,-593.57299319,0.00011,2]
[335017451,1723744239605,-4285.81638443,0.00011,2]
[335017452,1723744239616,-32945.57700825,0.00011,2]
[335017453,1723744239634,-463.6156368,0.00010979,2]
[335017454,1723744239644,-124.11255796,0.00011,2]
[335017455,1723744239658,-1825.75177474,0.00011,2]
[335017456,1723744239667,-17531.39825566,0.00011,2]
[335017457,1723744239678,-13128.41295886,0.00011,2]
[335017458,1723744239690,-1031.00172718,0.00011,2]
[335017459,1723744239701,-378.20121319,0.00011,2]
[335017460,1723744239712,-11291.98908571,0.00011,2]
[335017461,1723744239723,-1086.34670665,0.00011,2]
[335017462,1723744239738,-535.85788251,0.00011,2]
[335017463,1723744239752,-1534.61932229,0.00011,2]
[335017464,1723744239763,-68963.51653075,0.00011,2]
[335017465,1723744239775,-12904.56476892,0.00011,2]
[335017466,1723744239786,-1818.9,0.00011,2]
[335017467,1723744239797,-837.74750378,0.00011,2]
[335017468,1723744239812,-48804.17125912,0.00011,2]
[335017469,1723744239832,-320.10297877,0.00011,2]
[335017470,1723744239843,-27089.17785513,0.00011,2]
[335017471,1723744239854,-1617.592005,0.00011,2]
[335017472,1723744239865,-1363.68834929,0.00011,2]
[335017473,1723744239876,-2023.404,0.00011,2]
[335017474,1723744239888,-1352.08206824,0.00011,2]
[335017475,1723744239899,-696.7690233,0.00011,2]
[335017476,1723744239916,-359.58943198,0.00011,2]
[335017477,1723744240941,153.33333333,9.908e-05,2]
[335017489,1723744243565,-532.35328105,0.00011,2]
[335017493,1723744244148,-2569.56063354,0.00011,2]
[335017494,1723744244163,-361.01292754,0.00011,2]
[335017495,1723744244174,-1469.59370028,0.00011,2]
[335017496,1723744244185,-1533.56198351,0.00011,2]
[335017497,1723744244198,-2109.7800008,0.00011,2]
[335017498,1723744244209,-110931.50000003,0.00011,2]
[335017499,1723744244220,-669.24902375,0.00011,2]
[335017500,1723744244230,-964.68916673,0.00011,2]
[335017501,1723744244241,-330.5,0.00011,2]
[335017502,1723744244252,-1120.370897,0.00011,2]
[335017503,1723744244262,-4986.26623947,0.00011,2]
[335017504,1723744244273,-1058.55765,0.00011,2]
[335017505,1723744244283,-1325.20799028,0.00011,2]
[335017523,1723744245584,-3589.98717869,0.00011,2]
[335017524,1723744245595,-5177.5175671,0.00011,2]
[335017525,1723744245608,-1500.26464415,0.00011,2]
[335017526,1723744245618,-536.94281576,0.00011,2]
[335017527,1723744245630,-765.67486631,0.00011,2]
[335017528,1723744245641,-324.95834368,0.00011,2]
[335017529,1723744245654,-470.22347517,0.00011,2]
[335017530,1723744245670,-8571.89705668,0.00011,2]
[335017531,1723744245681,-2318.42279138,0.00011,2]
[335017532,1723744245692,-17714.41253113,0.00011,2]
[335017533,1723744245703,-422.24066894,0.00011,2]
[335017534,1723744245714,-1568.30176497,0.00011,2]
[335017535,1723744245994,-183656.24630632,0.00011,2]
[335017536,1723744246008,-59711.33944396,0.00011,2]
[335017537,1723744246019,-959.66047797,0.00011,2]
[335017538,1723744246030,-2015.57078776,0.00011,2]
[335017539,1723744246041,-810.67524185,0.00011,2]
[335017540,1723744246057,-35205.6737031,0.00011,2]
[335017541,1723744246073,-8849.56618415,0.00011,2]
[335017542,1723744246085,-776.31930374,0.00011,2]
[335017543,1723744246097,-6154.01807628,0.00011,2]
[335017544,1723744246108,-1278.44042038,0.00011,2]
[335017545,1723744246138,-2152.65565936,0.00011,2]
[335017546,1723744246149,-10544.62938039,0.00011,2]
[335017547,1723744246165,-952373.36314028,0.00011,2]
[335017548,1723744246176,-379.89623438,0.00011,2]
[335017549,1723744246188,-582.27653367,0.00011,2]
[335017550,1723744246200,-924.64607863,0.00011,2]
[335017552,1723744256762,500.0,9.908e-05,2]
[335017553,1723744257100,655.0,9.908e-05,2]
[335017554,1723744258084,151.0,9.908e-05,2]
[335017555,1723744258412,151.0,9.908e-05,2]
[335017556,1723744258741,151.0,9.908e-05,2]
[335017557,1723744259085,151.0,9.908e-05,2]
[335017558,1723744259409,201.0,9.908e-05,2]
[335017559,1723744266948,500.0,9.908e-05,2]
[335017560,1723744267281,500.0,9.908e-05,2]
[335017561,1723744267626,500.0,9.908e-05,2]
[335017562,1723744268022,500.0,9.908e-05,2]
[335017563,1723744268293,500.0,9.908e-05,2]
[335017564,1723744268757,500.0,9.908e-05,2]
[335017565,1723744269088,500.0,9.908e-05,2]
[335017566,1723744269414,500.0,9.908e-05,2]
[335017567,1723744269771,500.0,9.908e-05,2]
[335017568,1723744270104,500.0,9.908e-05,2]
[335017569,1723744270425,500.0,9.908e-05,2]
[335017570,1723744271121,500.0,9.908e-05,2]
[335017571,1723744271460,500.0,9.908e-05,2]
[335017572,1723744271796,500.0,9.908e-05,2]
[335017573,1723744272115,390.43319155,9.908e-05,2]
[335017574,1723744272140,109.56680845,9.908e-05,2]
[335017575,1723744272475,500.0,9.908e-05,2]
[335017576,1723744272808,500.0,9.908e-05,2]
[335017577,1723744273139,500.0,9.908e-05,2]
[335017578,1723744273469,500.0,9.908e-05,2]
[335017579,1723744273805,500.0,9.908e-05,2]
[335017580,1723744274164,500.0,9.908e-05,2]
[335017581,1723744274904,500.0,9.908e-05,2]
[335017582,1723744275226,500.0,9.908e-05,2]
[335017583,1723744275533,500.0,9.908e-05,2]
[335017584,1723744275867,713.0,9.908e-05,2]
[335017585,1723744299076,11189.68326892,9.908e-05,2]
[335017586,1723744319999,3071.9492003,9.908e-05,2]
[335017587,1723744320946,484.2,9.318e-05,2]
[335017588,1723744334230,10727.5796,9.887e-05,2]
[335017590,1723744362283,8377.56519708,9.318e-05,2]
[335017592,1723744416009,3070.91393262,9.318e-05,2]
[335017593,1723744443351,4021.41,9.528e-05,2]
[335017594,1723744514597,155.23,8.281e-05,2]
[335017595,1723744585697,500.0,8.281e-05,2]
[335017596,1723744586033,500.0,8.281e-05,2]
[335017597,1723744586554,500.0,8.281e-05,2]
[335017598,1723744586641,151.0,8.281e-05,2]
[335017599,1723744586715,500.0,8.281e-05,2]
[335017600,1723744586983,151.0,8.281e-05,2]
[335017601,1723744587062,500.0,8.281e-05,2]
[335017602,1723744587400,500.0,8.281e-05,2]
[335017603,1723744587744,500.0,8.281e-05,2]
[335017604,1723744705748,323.61461587,8.281e-05,2]
[335017605,1723744727522,1269.15931583,8.281e-05,2]
[335017606,1723744756915,1269.15931583,8.281e-05,2]
[335017607,1723744777974,459.99,8.219e-05,2]
[335017608,1723744780400,4458.86452158,8.281e-05,2]
[335017609,1723744785046,155.0,8.281e-05,2]
[335017610,1723744800048,155.0,8.281e-05,2]
[335017611,1723744800927,155.0,8.281e-05,2]
[335017612,1723744802949,155.23443983,8.281e-05,2]
[335017613,1723744803034,229.51,9.971e-05,2]
[335017614,1723744809680,159.09255227,8.281e-05,2]
[335017615,1723744813894,155.0,8.281e-05,2]
[335017616,1723744817071,173.90652039,8.281e-05,2]
[335017617,1723744823262,291.7067719,8.281e-05,2]
[335017618,1723744825523,3071.43156646,8.281e-05,2]
[335017619,1723744857446,693.33525753,8.281e-05,2]
[335017620,1723744861453,412.00852602,8.281e-05,2]
[335017621,1723744886644,16239.2033906,8.281e-05,2]
[335017622,1723744900111,500.0,8.281e-05,2]
[335017623,1723744900454,500.0,8.281e-05,2]
[335017624,1723744901370,500.0,8.281e-05,2]
[335017625,1723744901695,500.0,8.281e-05,2]
[335017626,1723744902040,500.0,8.281e-05,2]
[335017627,1723744903595,500.0,8.281e-05,2]
[335017628,1723744903895,500.0,8.281e-05,2]
[335017629,1723744904226,500.0,8.281e-05,2]
[335017630,1723744904776,500.0,8.281e-05,2]
[335017631,1723744905122,500.0,8.281e-05,2]
[335017632,1723744905580,500.0,8.281e-05,2]
[335017633,1723744905922,500.0,8.281e-05,2]
[335017634,1723744906264,500.0,8.281e-05,2]
[335017635,1723744906660,500.0,8.281e-05,2]
[335017636,1723744907174,500.0,8.281e-05,2]
[335017637,1723744907262,291.7067719,8.281e-05,2]
[335017638,1723744907549,500.0,8.281e-05,2]
[335017639,1723744907895,500.0,8.281e-05,2]
[335017640,1723744908213,500.0,8.281e-05,2]
[335017641,1723744909373,500.0,8.281e-05,2]
[335017642,1723744910306,500.0,8.281e-05,2]
[335017643,1723744910660,500.0,8.281e-05,2]
[335017644,1723744911094,500.0,8.281e-05,2]
[335017645,1723744911474,500.0,8.281e-05,2]
[335017646,1723744911799,500.0,8.281e-05,2]